fUSD/lending_fUSD_20241225
["ID","MTS","AMOUNT","RATE_DAILY","PERIOD"]
[346581146,1735113420819,-3489.81,9.791e-05,2]
[346581147,1735113420842,-549.26,9.792e-05,2]
[346581148,1735113420864,-500.0,9.792e-05,2]
[346581149,1735113420886,-721.39,9.792e-05,2]
[346581150,1735113420907,-500.0,9.792e-05,2]
[346581151,1735113420927,-1572.2,9.792e-05,2]
[346581152,1735113420949,-1067.44,9.792e-05,2]
[346581153,1735113420972,-2316.91,9.792e-05,2]
[346581154,1735113420993,-12942.7,9.792e-05,2]
[346581155,1735113421014,-580.87,9.792e-05,2]
[346581156,1735113421035,-9280.82,9.792e-05,2]
[346581157,1735113421056,-500.0,9.792e-05,2]
[346581158,1735113421078,-824.17,9.792e-05,2]
[346581159,1735113421106,-5247.74,9.792e-05,2]
[346581160,1735113421129,-2500.07,9.792e-05,2]
[346581161,1735113421153,-1258.24,9.792e-05,2]
[346581162,1735113421180,-809.19,9.792e-05,2]
[346581163,1735113421206,-1421.39,9.792e-05,2]
[346581164,1735113421233,-1492.53,9.792e-05,2]
[346581165,1735113421257,-557.13,9.792e-05,2]
[346581166,1735113421280,-2350.84,9.792e-05,2]
[346581167,1735113421302,-16581.82,9.792e-05,2]
[346581168,1735113421324,-500.0,9.792e-05,2]
[346581169,1735113421346,-7810.66,9.792e-05,2]
[346581170,1735113421371,-1353.1,9.792e-05,2]
[346581171,1735113421394,-2426.43,9.792e-05,2]
[346581172,1735113421416,-20424.12,9.792e-05,2]
[346581173,1735113421438,-2583.74,9.792e-05,2]
[346581174,1735113421460,-805.32,9.792e-05,2]
[346581175,1735113421481,-500.0,9.792e-05,2]
[346581176,1735113421504,-1558.01,9.792e-05,2]
[346581177,1735113421527,-3165.4,9.792e-05,2]
[346581178,1735113421550,-5913.52,9.792e-05,2]
[346581179,1735113421572,-601.36,9.792e-05,2]
[346581180,1735113421594,-500.0,9.792e-05,2]
[346581181,1735113421902,-500.0,9.792e-05,2]
[346581182,1735113421929,-13633.68,9.792e-05,2]
[346581183,1735113421952,-500.0,9.792e-05,2]
[346581184,1735113421976,-4933.12,9.792e-05,2]
[346581185,1735113422000,-777.85,9.792e-05,2]
[346581186,1735113422022,-3504.47,9.792e-05,2]
[346581187,1735113422043,-500.0,9.792e-05,2]
[346581188,1735113422066,-552.07,9.792e-05,2]
[346581189,1735113422088,-1271.33,9.792e-05,2]
[346581190,1735113422109,-500.0,9.792e-05,2]
[346581191,1735113422132,-4450.47,9.792e-05,2]
[346581192,1735113422154,-500.0,9.792e-05,2]
[346581193,1735113422176,-500.0,9.792e-05,2]
[346581194,1735113422197,-500.0,9.792e-05,2]
[346581195,1735113422221,-748.44,9.792e-05,2]
[346581196,1735113422244,-500.0,9.792e-05,2]
[346581197,1735113422270,-1757.68,9.792e-05,2]
[346581198,1735113422293,-9633.21,9.792e-05,2]
[346581199,1735113422317,-2469.702352,9.792e-05,2]
[346581200,1735113422343,-161.603889,9.792e-05,2]
[346581201,1735113422369,-153.897083,9.792e-05,2]
[346581202,1735113422392,-1992.14,9.792e-05,2]
[346581203,1735113422420,-500.0,9.792e-05,2]
[346581204,1735113422443,-500.0,9.792e-05,2]
[346581205,1735113422476,-500.0,9.792e-05,2]
[346581206,1735113422501,-500.0,9.792e-05,2]
[346581207,1735113422526,-1844.96,9.792e-05,2]
[346581208,1735113422549,-2495.350711,9.792e-05,2]
[346581209,1735113422572,-500.0,9.792e-05,2]
[346581210,1735113422596,-500.0,9.792e-05,2]
[346581211,1735113422620,-1311.07,9.792e-05,2]
[346581212,1735113422643,-992.23,9.792e-05,2]
[346581213,1735113422666,-1262.58,9.792e-05,2]
[346581214,1735113422691,-3617.19,9.792e-05,2]
[346581215,1735113422718,-856.41,9.792e-05,2]
[346581216,1735113422741,-987.39,9.792e-05,2]
[346581217,1735113422763,-3464.79,9.792e-05,2]
[346581218,1735113422785,-2051.9,9.792e-05,2]
[346581219,1735113422808,-4048.09,9.792e-05,2]
[346581220,1735113422829,-500.0,9.792e-05,2]
[346581221,1735113422851,-2245.75,9.792e-05,2]
[346581222,1735113422873,-1049.17,9.792e-05,2]
[346581223,1735113422896,-500.0,9.792e-05,2]
[346581224,1735113422918,-3645.41,9.792e-05,2]
[346581225,1735113422940,-1055.95,9.792e-05,2]
[346581226,1735113422963,-723.22,9.792e-05,2]
[346581227,1735113422986,-1187.35,9.792e-05,2]
[346581228,1735113423009,-6999.94,9.792e-05,2]
[346581229,1735113423033,-658.76,9.792e-05,2]
[346581230,1735113423056,-2172.48,9.792e-05,2]
[346581231,1735113423079,-2033.29,9.792e-05,2]
[346581232,1735113423100,-2646.18,9.792e-05,2]
[346581233,1735113423123,-4423.82,9.792e-05,2]
[346581234,1735113423146,-524.55,9.792e-05,2]
[346581235,1735113423169,-4001.2,9.792e-05,2]
[346581236,1735113423192,-2607.53,9.792e-05,2]
[346581237,1735113423221,-991.7,9.792e-05,2]
[346581238,1735113423247,-1016.5541348,9.792e-05,2]
[346581239,1735113423272,-3725.51,9.792e-05,2]
[346581240,1735113423297,-1258.34,9.792e-05,2]
[346581241,1735113423321,-1932.57,9.792e-05,2]
[346581242,1735113423345,-17227.81,9.792e-05,2]
[346581243,1735113423374,-1403.36,9.792e-05,2]
[346581244,1735113423399,-12744.62,9.792e-05,2]
[346581245,1735113423424,-657.72,9.792e-05,2]
[346581246,1735113423452,-2313.07,9.792e-05,2]
[346581247,1735113423478,-509.39,9.792e-05,2]
[346581248,1735113423502,-4188.01,9.792e-05,2]
[346581249,1735113423527,-943.76,9.792e-05,2]
[346581250,1735113423553,-2767.77,9.792e-05,2]
[346581251,1735113423577,-500.0,9.792e-05,2]
[346581252,1735113423601,-7011.05,9.792e-05,2]
[346581253,1735113423626,-2402.26,9.792e-05,2]
[346581254,1735113423653,-1026.73,9.792e-05,2]
[346581255,1735113423678,-20754.75,9.792e-05,2]
[346581256,1735113423702,-1173.03,9.792e-05,2]
[346581257,1735113423725,-4760.09,9.792e-05,2]
[346581258,1735113423748,-1941.71,9.792e-05,2]
[346581259,1735113423771,-500.0,9.792e-05,2]
[346581260,1735113423793,-1064.06,9.792e-05,2]
[346581261,1735113423815,-500.0,9.792e-05,2]
[346581262,1735113423837,-656.04,9.792e-05,2]
[346581263,1735113423861,-2103.8,9.792e-05,2]
[346581264,1735113423884,-6090.87,9.792e-05,2]
[346581265,1735113423907,-4837.2,9.792e-05,2]
[346581266,1735113423930,-1340.2,9.792e-05,2]
[346581267,1735113423955,-954.06,9.792e-05,2]
[346581268,1735113423978,-500.0,9.792e-05,2]
[346581269,1735113424001,-500.18478686,9.793e-05,2]
[346581270,1735113424023,-500.0,9.793e-05,2]
[346581271,1735113424045,-500.0,9.793e-05,2]
[346581272,1735113424068,-500.0,9.793e-05,2]
[346581273,1735113424089,-501.07557279,9.793e-05,2]
[346581274,1735113424110,-680.51,9.793e-05,2]
[346581275,1735113424132,-500.0,9.793e-05,2]
[346581276,1735113424154,-500.0,9.793e-05,2]
[346581277,1735113424175,-500.0,9.793e-05,2]
[346581278,1735113424197,-500.0,9.793e-05,2]
[346581279,1735113424220,-772.29,9.793e-05,2]
[346581280,1735113424242,-500.0,9.793e-05,2]
[346581281,1735113424264,-500.0,9.793e-05,2]
[346581282,1735113424286,-500.0,9.793e-05,2]
[346581283,1735113424308,-500.0,9.793e-05,2]
[346581284,1735113424331,-2598.38,9.793e-05,2]
[346581285,1735113424355,-500.0,9.793e-05,2]
[346581286,1735113424377,-248.76275087,9.793e-05,2]
[346581287,1735113424399,-500.0,9.793e-05,2]
[346581288,1735113424421,-1390.09,9.793e-05,2]
[346581289,1735113424445,-724.12,9.793e-05,2]
[346581290,1735113424468,-500.0,9.793e-05,2]
[346581291,1735113424490,-500.0,9.793e-05,2]
[346581292,1735113424513,-500.0,9.793e-05,2]
[346581293,1735113424535,-989.25,9.793e-05,2]
[346581294,1735113424557,-500.0,9.793e-05,2]
[346581295,1735113424580,-500.0,9.793e-05,2]
[346581296,1735113424601,-500.0,9.793e-05,2]
[346581297,1735113424623,-2000.2,9.793e-05,2]
[346581298,1735113424645,-500.0,9.793e-05,2]
[346581299,1735113424667,-859.07,9.793e-05,2]
[346581300,1735113424688,-500.0,9.793e-05,2]
[346581301,1735113424716,-500.0,9.793e-05,2]
[346581302,1735113424739,-777.15,9.793e-05,2]
[346581303,1735113424761,-1644.04,9.793e-05,2]
[346581304,1735113424783,-500.0,9.793e-05,2]
[346581305,1735113424804,-500.0,9.793e-05,2]
[346581306,1735113424826,-618.56,9.793e-05,2]
[346581307,1735113424847,-500.0,9.793e-05,2]
[346581308,1735113424868,-500.0,9.793e-05,2]
[346581309,1735113424891,-534.66,9.793e-05,2]
[346581310,1735113424913,-500.0,9.793e-05,2]
[346581311,1735113424936,-500.0,9.793e-05,2]
[346581312,1735113424959,-500.0,9.793e-05,2]
[346581313,1735113424983,-500.0,9.793e-05,2]
[346581314,1735113425201,-1933.01,9.793e-05,2]
[346581315,1735113425226,-500.0,9.793e-05,2]
[346581316,1735113425248,-500.0,9.793e-05,2]
[346581317,1735113425270,-500.0,9.793e-05,2]
[346581318,1735113425293,-1546.93,9.793e-05,2]
[346581319,1735113425314,-300.0,9.793e-05,2]
[346581320,1735113425336,-500.0,9.793e-05,2]
[346581321,1735113425361,-500.0,9.793e-05,2]
[346581322,1735113425383,-500.0,9.793e-05,2]
[346581323,1735113425405,-500.0,9.793e-05,2]
[346581324,1735113425427,-1228.12,9.793e-05,2]
[346581325,1735113425451,-508.55,9.793e-05,2]
[346581326,1735113425475,-500.0,9.793e-05,2]
[346581327,1735113425497,-1513.33,9.793e-05,2]
[346581328,1735113425520,-500.0,9.793e-05,2]
[346581329,1735113425542,-425.72918021,9.793e-05,2]
[346581330,1735113425564,-500.0,9.793e-05,2]
[346581331,1735113425588,-500.0,9.793e-05,2]
[346581332,1735113425610,-843.67,9.793e-05,2]
[346581333,1735113425631,-3555.06,9.793e-05,2]
[346581334,1735113425653,-500.0,9.793e-05,2]
[346581335,1735113425674,-500.0,9.793e-05,2]
[346581336,1735113425695,-500.0,9.793e-05,2]
[346581337,1735113425721,-12389.05,9.793e-05,2]
[346581338,1735113425743,-388.03279153,9.793e-05,2]
[346581339,1735113425765,-503.67431761,9.793e-05,2]
[346581340,1735113425787,-1332.2,9.793e-05,2]
[346581341,1735113425811,-500.0,9.793e-05,2]
[346581342,1735113425832,-696.91,9.793e-05,2]
[346581343,1735113425854,-500.0,9.793e-05,2]
[346581344,1735113425876,-500.0,9.793e-05,2]
[346581345,1735113425901,-1064.93,9.793e-05,2]
[346581346,1735113425925,-500.0,9.793e-05,2]
[346581347,1735113425949,-7108.38,9.793e-05,2]
[346581348,1735113425976,-500.0,9.793e-05,2]
[346581349,1735113426001,-500.0,9.793e-05,2]
[346581350,1735113426023,-502.01220109,9.793e-05,2]
[346581351,1735113426045,-3725.05,9.793e-05,2]
[346581352,1735113426067,-500.0,9.793e-05,2]
[346581353,1735113426087,-186.2863004,9.793e-05,2]
[346581354,1735113426108,-502.80149315,9.793e-05,2]
[346581355,1735113426129,-500.0,9.793e-05,2]
[346581356,1735113426151,-863.43,9.793e-05,2]
[346581357,1735113426172,-500.0,9.793e-05,2]
[346581358,1735113426194,-505.11575725,9.793e-05,2]
[346581359,1735113426217,-488.0366736,9.793e-05,2]
[346581360,1735113426240,-2635.49,9.793e-05,2]
[346581361,1735113426262,-272.544328,9.793e-05,2]
[346581362,1735113426284,-500.0,9.793e-05,2]
[346581363,1735113426305,-787.3,9.793e-05,2]
[346581364,1735113426326,-1769.32,9.793e-05,2]
[346581365,1735113426348,-500.0,9.793e-05,2]
[346581366,1735113426376,-506.84,9.793e-05,2]
[346581367,1735113426399,-500.0,9.793e-05,2]
[346581368,1735113426425,-6351.46,9.793e-05,2]
[346581369,1735113426446,-500.0,9.793e-05,2]
[346581370,1735113426468,-501.16516623,9.793e-05,2]
[346581371,1735113426490,-500.0,9.793e-05,2]
[346581372,1735113426513,-500.0,9.793e-05,2]
[346581373,1735113426537,-1195.82,9.793e-05,2]
[346581374,1735113426560,-500.0,9.793e-05,2]
[346581375,1735113426582,-2034.11,9.793e-05,2]
[346581376,1735113426603,-727.82,9.793e-05,2]
[346581377,1735113426624,-500.62392917,9.793e-05,2]
[346581378,1735113426644,-7776.83,9.793e-05,2]
[346581379,1735113426665,-506.1900132,9.793e-05,2]
[346581380,1735113426686,-2819.41,9.793e-05,2]
[346581381,1735113426708,-500.0,9.793e-05,2]
[346581382,1735113426731,-500.0,9.793e-05,2]
[346581383,1735113426752,-1866.71,9.793e-05,2]
[346581384,1735113426774,-513.25884947,9.793e-05,2]
[346581385,1735113426794,-500.0,9.793e-05,2]
[346581386,1735113426815,-4177.74,9.793e-05,2]
[346581387,1735113426836,-699.93,9.793e-05,2]
[346581388,1735113426859,-500.0,9.793e-05,2]
[346581389,1735113426882,-500.0,9.793e-05,2]
[346581390,1735113426904,-500.0,9.793e-05,2]
[346581391,1735113426925,-9763.72,9.793e-05,2]
[346581392,1735113426945,-2318.05,9.793e-05,2]
[346581393,1735113426966,-774.82,9.793e-05,2]
[346581394,1735113426986,-500.0,9.793e-05,2]
[346581395,1735113427006,-500.0,9.793e-05,2]
[346581396,1735113427028,-6515.34,9.793e-05,2]
[346581397,1735113427049,-536.95,9.793e-05,2]
[346581398,1735113427071,-500.0,9.793e-05,2]
[346581399,1735113427092,-905.27,9.793e-05,2]
[346581400,1735113427113,-502.6809562,9.793e-05,2]
[346581401,1735113427134,-500.0,9.793e-05,2]
[346581402,1735113427156,-53771.6,9.793e-05,2]
[346581403,1735113427178,-500.0,9.793e-05,2]
[346581404,1735113427199,-500.0,9.793e-05,2]
[346581405,1735113427222,-2870.21,9.793e-05,2]
[346581406,1735113427244,-500.0,9.793e-05,2]
[346581407,1735113427268,-504.47260511,9.793e-05,2]
[346581408,1735113427290,-1235.43,9.793e-05,2]
[346581409,1735113427312,-2831.76,9.793e-05,2]
[346581410,1735113427333,-500.0,9.793e-05,2]
[346581411,1735113427355,-500.0,9.793e-05,2]
[346581412,1735113427380,-507.87972403,9.793e-05,2]
[346581413,1735113427403,-500.0,9.793e-05,2]
[346581414,1735113427425,-641.85,9.793e-05,2]
[346581415,1735113427449,-500.0,9.793e-05,2]
[346581416,1735113427473,-500.0,9.793e-05,2]
[346581417,1735113427495,-2210.94,9.793e-05,2]
[346581418,1735113427518,-500.0,9.793e-05,2]
[346581419,1735113427540,-1843.22,9.793e-05,2]
[346581420,1735113427561,-507.92380145,9.793e-05,2]
[346581421,1735113427583,-1696.05,9.793e-05,2]
[346581422,1735113427604,-346.50906892,9.793e-05,2]
[346581423,1735113427624,-1227.37,9.793e-05,2]
[346581424,1735113427645,-293.30107421,9.793e-05,2]
[346581425,1735113427667,-1113.68,9.793e-05,2]
[346581426,1735113427689,-501.33478957,9.793e-05,2]
[346581427,1735113427716,-1082.16,9.793e-05,2]
[346581428,1735113427738,-503.31540898,9.793e-05,2]
[346581429,1735113427760,-1040.34,9.793e-05,2]
[346581430,1735113427782,-9008.31,9.793e-05,2]
[346581431,1735113427804,-5418.25,9.793e-05,2]
[346581432,1735113427826,-1316.14,9.793e-05,2]
[346581433,1735113427848,-500.0,9.793e-05,2]
[346581434,1735113427872,-500.0,9.793e-05,2]
[346581435,1735113427894,-500.0,9.793e-05,2]
[346581436,1735113427915,-500.0,9.793e-05,2]
[346581437,1735113427939,-500.0,9.793e-05,2]
[346581438,1735113427960,-500.0,9.793e-05,2]
[346581439,1735113427982,-500.0,9.793e-05,2]
[346581440,1735113428004,-1656.38,9.793e-05,2]
[346581441,1735113428197,-1453.39,9.793e-05,2]
[346581442,1735113428225,-1668.57,9.793e-05,2]
[346581443,1735113428247,-500.0,9.793e-05,2]
[346581444,1735113428269,-500.0,9.793e-05,2]
[346581445,1735113428291,-500.0,9.793e-05,2]
[346581446,1735113428314,-500.0,9.793e-05,2]
[346581447,1735113428337,-559.51,9.793e-05,2]
[346581448,1735113428361,-575.86,9.793e-05,2]
[346581449,1735113428385,-500.0,9.793e-05,2]
[346581450,1735113428406,-500.0,9.793e-05,2]
[346581451,1735113428427,-501.36711054,9.793e-05,2]
[346581452,1735113428449,-500.0,9.793e-05,2]
[346581453,1735113428473,-500.0,9.793e-05,2]
[346581454,1735113428498,-2922.02,9.793e-05,2]
[346581455,1735113428521,-500.0,9.793e-05,2]
[346581456,1735113428544,-2147.05,9.793e-05,2]
[346581457,1735113428568,-3777.75,9.793e-05,2]
[346581458,1735113428590,-500.0,9.793e-05,2]
[346581459,1735113428611,-680.33,9.793e-05,2]
[346581460,1735113428632,-500.0,9.793e-05,2]
[346581461,1735113428656,-500.0,9.793e-05,2]
[346581462,1735113428679,-4048.09,9.793e-05,2]
[346581463,1735113428703,-4048.09,9.793e-05,2]
[346581464,1735113428727,-4048.09,9.793e-05,2]
[346581465,1735113428747,-500.0,9.793e-05,2]
[346581466,1735113428770,-10546.81,9.793e-05,2]
[346581467,1735113428790,-890.3,9.793e-05,2]
[346581468,1735113428812,-2029.97,9.793e-05,2]
[346581469,1735113428832,-500.0,9.793e-05,2]
[346581470,1735113428853,-500.0,9.793e-05,2]
[346581471,1735113428874,-500.0,9.793e-05,2]
[346581472,1735113428897,-4366.42,9.793e-05,2]
[346581473,1735113428918,-535.4,9.793e-05,2]
[346581474,1735113428940,-500.0,9.793e-05,2]
[346581475,1735113428962,-500.0,9.793e-05,2]
[346581476,1735113428985,-1432.02,9.793e-05,2]
[346581477,1735113429007,-1897.9,9.793e-05,2]
[346581478,1735113429029,-500.0,9.793e-05,2]
[346581479,1735113429051,-3789.66,9.793e-05,2]
[346581480,1735113429073,-500.0,9.793e-05,2]
[346581481,1735113429094,-514.70003316,9.793e-05,2]
[346581482,1735113429115,-500.0,9.793e-05,2]
[346581483,1735113429136,-1474.08,9.793e-05,2]
[346581484,1735113429156,-500.0,9.793e-05,2]
[346581485,1735113429178,-1057.78,9.793e-05,2]
[346581486,1735113429200,-505.63,9.793e-05,2]
[346581487,1735113429222,-500.0,9.793e-05,2]
[346581488,1735113429243,-1546.81,9.793e-05,2]
[346581489,1735113429264,-500.0,9.793e-05,2]
[346581490,1735113429290,-3134.25,9.793e-05,2]
[346581491,1735113429311,-622.59,9.793e-05,2]
[346581492,1735113429333,-500.0,9.793e-05,2]
[346581493,1735113429354,-500.0,9.793e-05,2]
[346581494,1735113429381,-500.0,9.793e-05,2]
[346581495,1735113429404,-3076.98,9.793e-05,2]
[346581496,1735113429426,-500.0,9.793e-05,2]
[346581497,1735113429448,-500.0,9.793e-05,2]
[346581498,1735113429471,-4712.13,9.793e-05,2]
[346581499,1735113429492,-1597.54,9.793e-05,2]
[346581500,1735113429513,-500.0,9.793e-05,2]
[346581501,1735113429534,-500.0,9.793e-05,2]
[346581502,1735113429555,-2659.77,9.793e-05,2]
[346581503,1735113429576,-1959.21,9.793e-05,2]
[346581504,1735113429597,-500.0,9.793e-05,2]
[346581505,1735113429617,-500.0,9.793e-05,2]
[346581506,1735113429638,-500.0,9.793e-05,2]
[346581507,1735113429659,-5568.33,9.793e-05,2]
[346581508,1735113429679,-2340.06,9.793e-05,2]
[346581509,1735113429699,-500.0,9.793e-05,2]
[346581510,1735113429723,-2236.54,9.793e-05,2]
[346581511,1735113429744,-1842.58,9.793e-05,2]
[346581512,1735113429766,-500.0,9.793e-05,2]
[346581513,1735113429786,-500.0,9.793e-05,2]
[346581514,1735113429806,-500.0,9.793e-05,2]
[346581515,1735113429827,-8525.15,9.793e-05,2]
[346581516,1735113429848,-1992.66,9.793e-05,2]
[346581517,1735113429869,-500.0,9.793e-05,2]
[346581518,1735113429889,-500.0,9.793e-05,2]
[346581519,1735113429911,-10827.72,9.793e-05,2]
[346581520,1735113429932,-175.94489204,9.793e-05,2]
[346581521,1735113429954,-1270.4,9.793e-05,2]
[346581522,1735113429975,-500.0,9.793e-05,2]
[346581523,1735113429997,-8077.26,9.793e-05,2]
[346581524,1735113430018,-500.0,9.793e-05,2]
[346581525,1735113430039,-63221.42,9.793e-05,2]
[346581526,1735113430060,-500.0,9.793e-05,2]
[346581527,1735113430081,-1521.81,9.793e-05,2]
[346581528,1735113430101,-500.0,9.793e-05,2]
[346581529,1735113430122,-500.0,9.793e-05,2]
[346581530,1735113430144,-2850.28,9.793e-05,2]
[346581531,1735113430165,-500.0,9.793e-05,2]
[346581532,1735113430186,-500.0,9.793e-05,2]
[346581533,1735113430207,-1737.25,9.793e-05,2]
[346581534,1735113430229,-602.38,9.793e-05,2]
[346581535,1735113430251,-500.0,9.793e-05,2]
[346581536,1735113430273,-500.0,9.793e-05,2]
[346581537,1735113430295,-672.39,9.793e-05,2]
[346581538,1735113430317,-500.0,9.793e-05,2]
[346581539,1735113430338,-4432.86,9.793e-05,2]
[346581540,1735113430360,-3056.66,9.793e-05,2]
[346581541,1735113430383,-500.0,9.794e-05,2]
[346581542,1735113430404,-500.0,9.794e-05,2]
[346581543,1735113430425,-500.0,9.794e-05,2]
[346581544,1735113430446,-365.50656235,9.794e-05,2]
[346581545,1735113430467,-500.0,9.794e-05,2]
[346581546,1735113430489,-1032.9,9.794e-05,2]
[346581547,1735113430509,-500.0,9.794e-05,2]
[346581548,1735113430530,-948.55,9.794e-05,2]
[346581549,1735113430551,-500.0,9.794e-05,2]
[346581550,1735113430572,-500.0,9.794e-05,2]
[346581551,1735113430593,-500.0,9.794e-05,2]
[346581552,1735113430614,-500.0,9.794e-05,2]
[346581553,1735113430635,-500.0,9.794e-05,2]
[346581554,1735113430656,-505.43248983,9.794e-05,2]
[346581555,1735113430676,-576.1275893,9.794e-05,2]
[346581556,1735113430698,-558.78,9.794e-05,2]
[346581557,1735113430720,-830.96,9.794e-05,2]
[346581558,1735113430742,-500.0,9.794e-05,2]
[346581559,1735113430763,-500.0,9.794e-05,2]
[346581560,1735113430784,-500.0,9.794e-05,2]
[346581561,1735113430805,-500.0,9.794e-05,2]
[346581562,1735113430827,-500.0,9.794e-05,2]
[346581563,1735113430847,-500.0,9.794e-05,2]
[346581564,1735113431052,-1583.22,9.794e-05,2]
[346581565,1735113431076,-500.0,9.794e-05,2]
[346581566,1735113431099,-1283.95,9.794e-05,2]
[346581567,1735113431121,-500.0,9.794e-05,2]
[346581568,1735113431143,-500.0,9.794e-05,2]
[346581569,1735113431166,-1241.9,9.794e-05,2]
[346581570,1735113431187,-2198.58,9.794e-05,2]
[346581571,1735113431208,-536.52,9.794e-05,2]
[346581572,1735113431230,-500.0,9.794e-05,2]
[346581573,1735113431251,-500.0,9.794e-05,2]
[346581574,1735113431272,-500.0,9.794e-05,2]
[346581575,1735113431293,-500.0,9.794e-05,2]
[346581576,1735113431313,-513.32,9.794e-05,2]
[346581577,1735113431335,-1066.35,9.794e-05,2]
[346581578,1735113431356,-500.0,9.794e-05,2]
[346581579,1735113431380,-1397.93,9.794e-05,2]
[346581580,1735113431403,-588.16,9.794e-05,2]
[346581581,1735113431423,-500.0,9.794e-05,2]
[346581582,1735113431447,-500.0,9.794e-05,2]
[346581583,1735113431469,-500.0,9.794e-05,2]
[346581584,1735113431491,-500.0,9.794e-05,2]
[346581585,1735113431512,-947.83,9.794e-05,2]
[346581586,1735113431533,-586.45,9.794e-05,2]
[346581587,1735113431553,-604.66,9.794e-05,2]
[346581588,1735113431573,-500.0,9.794e-05,2]
[346581589,1735113431594,-500.0,9.794e-05,2]
[346581590,1735113431615,-500.0,9.794e-05,2]
[346581591,1735113431635,-500.0,9.794e-05,2]
[346581592,1735113431656,-830.3,9.794e-05,2]
[346581593,1735113431676,-500.0,9.794e-05,2]
[346581594,1735113431696,-500.0,9.794e-05,2]
[346581595,1735113431720,-500.0,9.794e-05,2]
[346581596,1735113431741,-812.24,9.794e-05,2]
[346581597,1735113431762,-500.0,9.794e-05,2]
[346581598,1735113431782,-500.0,9.794e-05,2]
[346581599,1735113431802,-705.66,9.794e-05,2]
[346581600,1735113431822,-1758.07,9.794e-05,2]
[346581601,1735113431843,-500.0,9.794e-05,2]
[346581602,1735113431863,-500.0,9.794e-05,2]
[346581603,1735113431884,-708.68,9.794e-05,2]
[346581604,1735113431905,-1542.8,9.794e-05,2]
[346581605,1735113431926,-504.83,9.794e-05,2]
[346581606,1735113431946,-500.0,9.794e-05,2]
[346581607,1735113431966,-881.85,9.794e-05,2]
[346581608,1735113431988,-500.0,9.794e-05,2]
[346581609,1735113432010,-500.0,9.794e-05,2]
[346581610,1735113432032,-500.0,9.794e-05,2]
[346581611,1735113432053,-500.0,9.794e-05,2]
[346581612,1735113432075,-500.0,9.794e-05,2]
[346581613,1735113432096,-500.0,9.794e-05,2]
[346581614,1735113432117,-500.0,9.794e-05,2]
[346581615,1735113432139,-500.0,9.794e-05,2]
[346581616,1735113432161,-500.0,9.794e-05,2]
[346581617,1735113432182,-500.0,9.794e-05,2]
[346581618,1735113432204,-500.0,9.794e-05,2]
[346581619,1735113432226,-500.0,9.794e-05,2]
[346581620,1735113432247,-500.0,9.794e-05,2]
[346581621,1735113432268,-500.0,9.794e-05,2]
[346581622,1735113432289,-1828.14,9.794e-05,2]
[346581623,1735113432310,-500.0,9.794e-05,2]
[346581624,1735113432331,-1716.99,9.794e-05,2]
[346581625,1735113432352,-503.5067966,9.794e-05,2]
[346581626,1735113432375,-748.83,9.794e-05,2]
[346581627,1735113432395,-314.96535269,9.794e-05,2]
[346581628,1735113432415,-500.0,9.794e-05,2]
[346581629,1735113432437,-640.69100761,9.794e-05,2]
[346581630,1735113432457,-500.0,9.794e-05,2]
[346581631,1735113432479,-1136.82,9.794e-05,2]
[346581632,1735113432500,-572.239521,9.794e-05,2]
[346581633,1735113432522,-500.0,9.794e-05,2]
[346581634,1735113432543,-853.95,9.794e-05,2]
[346581635,1735113432564,-998.73,9.794e-05,2]
[346581636,1735113432585,-500.0,9.794e-05,2]
[346581637,1735113432605,-500.0,9.794e-05,2]
[346581638,1735113432625,-500.0,9.794e-05,2]
[346581639,1735113432647,-500.0,9.794e-05,2]
[346581640,1735113432667,-500.0,9.794e-05,2]
[346581641,1735113432690,-500.0,9.794e-05,2]
[346581642,1735113432712,-1965.96,9.794e-05,2]
[346581643,1735113432735,-500.0,9.794e-05,2]
[346581644,1735113432756,-500.0,9.794e-05,2]
[346581645,1735113432777,-500.0,9.794e-05,2]